bitfinex/quotes_BTCUSD_20250123
["timestamp","ask_amount","ask_price","bid_price","bid_amount"]
[1737598220516,0.63672228,102380.0,102370.0,0.00029404]
[1737598220725,0.245494,102360.0,102350.0,0.0001424]
[1737598220927,0.58674128,102360.0,102350.0,0.00029402]
[1737598222499,0.59634128,102360.0,102350.0,0.00029402]
[1737598222675,0.59488305,102360.0,102350.0,0.09799702]
[1737598222880,0.59488305,102360.0,102350.0,0.00029402]
[1737598223678,0.61488305,102360.0,102350.0,0.00029402]
[1737598224815,0.60473956,102360.0,102350.0,0.00029402]
[1737598226183,0.50850379,102360.0,102350.0,0.00029402]
[1737598226588,0.60619779,102360.0,102350.0,0.00029402]
[1737598228496,0.48904728,102360.0,102350.0,0.09799702]
[1737598228685,0.49864728,102360.0,102350.0,0.09799702]
[1737598229415,0.27629851,102360.0,102350.0,0.87779702]
[1737598229624,0.26389999,102360.0,102350.0,0.87779702]
[1737598229822,0.24389999,102360.0,102350.0,0.87779702]
[1737598230031,0.26389999,102360.0,102350.0,0.87779702]
[1737598230447,0.24389999,102360.0,102350.0,0.87779702]
[1737598230653,0.14620499,102360.0,102350.0,0.99274579]
[1737598230857,0.14620499,102360.0,102350.0,0.99324579]
[1737598231709,0.14620499,102360.0,102350.0,0.87829702]
[1737598232107,0.14620499,102360.0,102350.0,0.87779702]
[1737598233285,0.70820499,102360.0,102350.0,0.35409702]
[1737598233702,0.70820499,102360.0,102350.0,0.09799702]
[1737598234137,0.70820499,102360.0,102350.0,0.35239702]
[1737598234344,0.70820499,102360.0,102350.0,0.36235207]
[1737598235530,0.36424628,102360.0,102350.0,0.00029402]
[1737598235734,0.41404628,102360.0,102350.0,0.00029402]
[1737598237495,0.6512925,102360.0,102350.0,0.00029402]
[1737598237694,0.228923,102330.0,102320.0,0.0978715]
[1737598237892,0.40783228,102330.0,102320.0,0.24802281]
[1737598238097,0.50555528,102330.0,102320.0,0.09802281]
[1737598238476,0.50555528,102330.0,102320.0,0.24802281]
[1737598238721,0.50555528,102330.0,102320.0,0.09802281]
[1737598238921,0.50555528,102330.0,102320.0,0.24802281]
[1737598239380,0.40783228,102330.0,102320.0,0.24802281]
[1737598239940,0.42783228,102330.0,102320.0,0.24802281]
[1737598240143,0.40783228,102330.0,102320.0,0.24802281]
[1737598240351,0.42783228,102330.0,102320.0,0.24802281]
[1737598240558,0.15628499,102330.0,102320.0,0.49152281]
[1737598242041,0.14620499,102330.0,102320.0,0.49152281]
[1737598242859,0.14620499,102330.0,102320.0,0.5888701]
[1737598243448,0.14620499,102330.0,102320.0,0.60647158]
[1737598244416,0.08731657,102330.0,102320.0,0.60647158]
[1737598246143,0.08231657,102330.0,102320.0,0.60647158]
[1737598247147,0.07356717,102330.0,102320.0,0.60647158]
[1737598247399,1.7e-07,102330.0,102320.0,0.60647158]
[1737598247600,1.7e-07,102330.0,102320.0,0.36297158]
[1737598248412,0.3227,102350.0,102340.0,0.15]
[1737598248606,0.61583,102350.0,102340.0,0.877513]
[1737598249221,0.61583,102350.0,102340.0,0.97486029]
[1737598249412,0.58721604,102350.0,102340.0,0.99246177]
[1737598249815,0.57745101,102350.0,102340.0,0.99246177]
[1737598250575,0.47673702,102350.0,102340.0,0.99246177]
[1737598250750,0.05864732,102350.0,102340.0,0.99246177]
[1737598251154,2.432e-05,102350.0,102340.0,0.99246177]
[1737598251327,0.00028357,102360.0,102350.0,0.26530448]
[1737598251532,0.20712153,102390.0,102380.0,0.247675]
[1737598251767,0.50013153,102390.0,102380.0,0.877475]
[1737598251939,0.49005153,102390.0,102380.0,0.877475]
[1737598252347,0.214878,102390.0,102380.0,0.99242377]
[1737598252652,0.1525853,102390.0,102380.0,0.99242377]
[1737598252812,0.1525853,102390.0,102380.0,0.87762631]
[1737598253376,0.1725853,102390.0,102380.0,0.87762631]
[1737598254457,0.81493259,102390.0,102380.0,0.29762631]
[1737598254627,0.30533111,102390.0,102380.0,0.09782631]
[1737598254826,0.30533111,102390.0,102380.0,0.24782631]
[1737598255538,0.37059759,102390.0,102380.0,0.09782631]
[1737598255741,0.41739759,102390.0,102380.0,0.00015131]
[1737598256144,0.41739759,102390.0,102380.0,0.15015131]
[1737598256548,0.41739759,102390.0,102380.0,0.24782631]
[1737598257290,0.34981259,102390.0,102380.0,0.24782631]
[1737598257495,0.1993853,102390.0,102380.0,0.87762631]
[1737598257673,0.1525853,102390.0,102380.0,0.9749736]
[1737598257855,0.1525853,102390.0,102380.0,0.99257508]
[1737598258053,0.09919852,102420.0,102380.0,0.89490008]
[1737598258282,0.09919852,102420.0,102410.0,0.247646]
[1737598258620,0.09919852,102420.0,102410.0,0.877446]
[1737598259052,0.35973,102420.0,102410.0,0.877446]
[1737598259287,0.46947581,102420.0,102410.0,0.15]
[1737598259523,0.05539852,102410.0,102400.0,0.097648]
[1737598259726,0.15274581,102410.0,102400.0,0.247648]
[1737598259874,0.15274581,102410.0,102400.0,0.356148]
[1737598259875,0.42267581,102410.0,102400.0,0.356148]
[1737598260076,0.29293,102410.0,102400.0,0.356148]
[1737598260762,0.31293,102410.0,102400.0,0.510148]
[1737598260963,0.29293,102410.0,102400.0,0.510148]
[1737598261386,0.29293,102410.0,102400.0,0.458248]
[1737598261987,0.31293,102410.0,102400.0,0.458248]
[1737598262330,0.29293,102410.0,102400.0,0.458248]
[1737598263392,0.3130725,102410.0,102400.0,0.458248]
[1737598264035,0.3130725,102410.0,102400.0,0.434348]
[1737598264219,0.3130725,102410.0,102400.0,0.418048]
[1737598264566,0.44581831,102410.0,102400.0,0.877448]
[1737598264759,0.44581831,102410.0,102400.0,0.402548]
[1737598264926,0.46581831,102410.0,102400.0,0.402548]
[1737598265620,0.34547102,102410.0,102400.0,0.402548]
[1737598265830,0.34547102,102410.0,102400.0,0.41224283]
[1737598266709,0.41341979,102410.0,102400.0,0.26224283]
[1737598266931,0.41341979,102410.0,102400.0,0.10734283]
[1737598267141,0.3130725,102410.0,102400.0,0.88714283]
[1737598270200,0.2930725,102410.0,102400.0,0.88714283]
[1737598271176,0.2735435,102410.0,102400.0,0.98449012]
[1737598271389,0.2735435,102410.0,102400.0,1.0020916]
[1737598271390,0.07652278,102410.0,102400.0,1.0020916]
[1737598271602,0.07132078,102410.0,102400.0,1.0020916]
[1737598272015,0.05179178,102410.0,102400.0,1.0020916]
[1737598272213,7.8e-07,102410.0,102400.0,1.0020916]
[1737598272430,7.8e-07,102410.0,102400.0,0.3722916]
[1737598272649,0.27342178,102410.0,102400.0,0.3722916]
[1737598273110,0.01641572,102410.0,102400.0,0.3952916]
[1737598273332,0.14679968,102460.0,102450.0,0.097608]
[1737598273333,0.12679968,102460.0,102450.0,0.097608]
[1737598273518,0.1118382,102460.0,102450.0,0.58510283]
[1737598273759,0.18918549,102460.0,102450.0,0.25730283]
[1737598273981,0.58239549,102460.0,102450.0,0.247608]
[1737598274404,0.55939549,102460.0,102450.0,0.70590283]
[1737598274647,0.55990145,102460.0,102450.0,0.70010283]
[1737598274865,0.58290145,102460.0,102450.0,0.25730283]
[1737598275068,0.48255416,102460.0,102450.0,0.25730283]
[1737598275291,0.35275564,102460.0,102450.0,0.88710283]
[1737598277016,0.30365564,102460.0,102450.0,0.88710283]
[1737598278288,0.30365564,102460.0,102450.0,0.80900283]
[1737598278746,0.29361564,102460.0,102450.0,0.80900283]
[1737598280127,0.31361564,102460.0,102450.0,0.73410283]
[1737598280339,0.29361564,102460.0,102450.0,0.88710283]
[1737598280567,0.85561564,102460.0,102450.0,0.88710283]
[1737598280775,0.83561564,102460.0,102450.0,0.88710283]
[1737598281702,0.83561564,102460.0,102450.0,0.98445012]
[1737598282170,0.29361564,102460.0,102450.0,0.88710283]
[1737598282410,0.29361564,102460.0,102450.0,0.98445012]
[1737598282621,0.29361564,102460.0,102450.0,1.0020516]
[1737598282860,0.29361564,102460.0,102450.0,1.02552911]
[1737598283069,0.29361564,102460.0,102450.0,1.02717318]
[1737598283286,0.29361564,102460.0,102450.0,1.0020516]
[1737598283510,0.18957735,102460.0,102450.0,1.0020516]
[1737598284699,0.18633694,102460.0,102450.0,1.0020516]
[1737598286701,0.18633694,102460.0,102450.0,0.88710283]
[1737598287042,0.18633694,102460.0,102450.0,0.73740166]
[1737598287244,0.18647924,102460.0,102450.0,0.73740166]
[1737598288034,0.18647924,102460.0,102450.0,0.88740166]
[1737598288448,0.74847924,102460.0,102450.0,0.73740166]
[1737598288891,0.78087776,102460.0,102450.0,0.88740166]
[1737598289748,0.74847924,102460.0,102450.0,0.88740166]
[1737598291070,0.78087776,102460.0,102450.0,0.88740166]
[1737598291557,0.78087776,102460.0,102450.0,0.79080166]
[1737598291785,0.72847924,102460.0,102450.0,0.79080166]
[1737598292332,0.72847924,102460.0,102450.0,0.88814895]
[1737598292532,0.18647924,102460.0,102450.0,0.88814895]
[1737598293632,0.18647924,102460.0,102450.0,0.89786278]
[1737598294158,0.00029968,102470.0,102460.0,0.247599]
[1737598294341,0.00029968,102470.0,102460.0,0.97474629]
[1737598294840,0.29307968,102470.0,102460.0,0.97474629]
[1737598295732,0.06839968,102500.0,102490.0,0.09757]
[1737598295954,0.00039967,102500.0,102490.0,0.89677866]
[1737598296156,0.00039967,102500.0,102490.0,0.26697866]
[1737598296157,0.00055054,102500.0,102490.0,0.26697866]
[1737598296369,0.00015087,102500.0,102490.0,0.89677866]
[1737598296511,0.29285087,102500.0,102490.0,0.89677866]
[1737598296737,0.29325054,102500.0,102490.0,0.89677866]
[1737598296937,0.29285087,102500.0,102490.0,0.92190024]
[1737598297139,0.29285087,102500.0,102490.0,1.04272504]
[1737598297550,0.29285087,102500.0,102490.0,0.99412595]
[1737598297935,0.29285087,102500.0,102490.0,0.89677866]
[1737598298143,0.29325054,102500.0,102490.0,0.89677866]
[1737598299232,0.29339284,102500.0,102490.0,0.89677866]
[1737598299647,0.29339284,102500.0,102490.0,0.90644797]
[1737598300880,0.29339284,102500.0,102490.0,0.80887797]
[1737598301106,0.29339284,102500.0,102490.0,0.90644797]
[1737598301443,0.29299317,102500.0,102490.0,0.90644797]
[1737598301862,0.29299317,102500.0,102490.0,1.00379526]
[1737598302073,0.25396917,102500.0,102490.0,1.00379526]
[1737598302281,0.17592117,102500.0,102490.0,1.04099707]
[1737598302690,0.17592117,102500.0,102490.0,1.08583655]
[1737598302907,0.01519903,102500.0,102490.0,1.08583655]
[1737598303121,1.1e-07,102520.0,102510.0,0.097551]
[1737598303339,1.1e-07,102520.0,102510.0,0.3652821]
[1737598303569,1.1e-07,102520.0,102510.0,0.26695966]
[1737598304259,1.1e-07,102520.0,102510.0,0.38768092]
[1737598304260,0.29264011,102520.0,102510.0,0.38768092]
[1737598304466,0.29264011,102520.0,102510.0,0.36430695]
[1737598304925,0.29264011,102520.0,102510.0,0.99410695]
[1737598305346,0.27313211,102520.0,102510.0,0.99410695]
[1737598305778,0.18514787,102520.0,102510.0,1.01370728]
[1737598305954,0.16266034,102520.0,102510.0,1.01370728]
[1737598306170,0.12364434,102520.0,102510.0,1.02350101]
[1737598306372,0.06512034,102520.0,102510.0,1.04110249]
[1737598306576,0.15206023,102550.0,102540.0,0.247522]
[1737598306730,0.15221175,102550.0,102540.0,0.89673066]
[1737598306970,0.68449175,102550.0,102540.0,0.89673066]
[1737598307604,0.68449175,102550.0,102540.0,0.83816267]
[1737598307605,0.97704175,102550.0,102540.0,0.83816267]
[1737598307831,1.00944027,102550.0,102540.0,0.89673066]
[1737598308028,0.97704175,102550.0,102540.0,0.89673066]
[1737598308813,1.00944027,102550.0,102540.0,0.89673066]
[1737598309258,0.97704175,102550.0,102540.0,0.89673066]
[1737598310267,0.43504175,102550.0,102540.0,0.89673066]
[1737598310472,0.4349442,102550.0,102540.0,0.89673066]
[1737598310672,0.4350865,102550.0,102540.0,0.89673066]
[1737598310877,0.4350265,102550.0,102540.0,0.89673066]
[1737598311403,0.30632683,102550.0,102540.0,0.99407795]
[1737598311741,0.53197412,102550.0,102540.0,0.50321383]
[1737598312112,0.64948712,102550.0,102540.0,0.00971383]
[1737598312317,0.03239852,102530.0,102520.0,0.292604]
[1737598312528,0.50249581,102530.0,102520.0,0.292604]
[1737598312746,0.37314967,102530.0,102520.0,0.93209883]
[1737598312948,0.40554819,102530.0,102520.0,0.45229883]
[1737598313153,0.40554819,102530.0,102520.0,0.653104]
[1737598313530,0.37314967,102530.0,102520.0,0.653104]
[1737598314093,0.40554819,102530.0,102520.0,0.653104]
[1737598314274,0.37314967,102530.0,102520.0,0.66267512]
[1737598314516,0.37275,102530.0,102520.0,0.66267512]
[1737598314747,0.29255,102530.0,102520.0,0.76002241]
[1737598315445,0.29255,102530.0,102520.0,0.80262274]
[1737598315555,0.29255,102530.0,102520.0,0.78302241]
[1737598315760,0.29255,102530.0,102520.0,0.76002241]
[1737598315977,0.29255,102530.0,102520.0,0.66267512]
[1737598316593,0.51819729,102530.0,102520.0,0.45217512]
[1737598316807,1.09259581,102530.0,102520.0,0.097532]
[1737598317013,0.57439852,102520.0,102510.0,0.292633]
[1737598317219,0.42229581,102520.0,102510.0,0.960033]
[1737598317423,0.42229581,102520.0,102510.0,0.810033]
[1737598317625,0.42229581,102520.0,102510.0,0.292633]
[1737598317824,0.96429581,102520.0,102510.0,0.442633]
[1737598318366,0.96429581,102520.0,102510.0,0.292633]
[1737598318367,0.93189729,102520.0,102510.0,0.292633]
[1737598318779,0.93189729,102520.0,102510.0,0.442633]
[1737598320552,1.01209729,102520.0,102510.0,0.442633]
[1737598321105,0.03239852,102500.0,102490.0,0.195126]
[1737598321320,0.46336819,102500.0,102490.0,1.742287]
[1737598321492,0.43057,102500.0,102490.0,1.742287]
[1737598321744,0.43057,102500.0,102490.0,1.892287]
[1737598322459,0.43096967,102500.0,102490.0,1.90226717]
[1737598322655,0.84466967,102500.0,102490.0,1.90226717]
[1737598323105,0.83494967,102500.0,102490.0,0.45266717]
[1737598323276,0.83494967,102500.0,102490.0,5.50266717]
[1737598324710,0.83455,102500.0,102490.0,5.60001446]
[1737598325090,0.83455,102500.0,102490.0,4.89471446]
[1737598325803,0.83455,102500.0,102490.0,4.22191446]
[1737598326237,0.83455,102500.0,102490.0,3.49341446]
[1737598326758,0.83455,102500.0,102490.0,3.33086717]
[1737598326976,0.83494967,102500.0,102490.0,3.33086717]
[1737598327208,0.83494967,102500.0,102490.0,1.26926717]
[1737598327590,1.04589581,102500.0,102490.0,0.30266717]
[1737598327819,1.09249581,102500.0,102490.0,0.30266717]
[1737598328269,1.09249581,102500.0,102490.0,0.45266717]
[1737598328472,1.09249581,102500.0,102490.0,0.442687]
[1737598329060,1.09249581,102500.0,102490.0,0.247561]
[1737598330313,1.09249581,102500.0,102490.0,0.15]
[1737598330314,1.06009729,102500.0,102490.0,0.15]
[1737598330490,1.15765729,102500.0,102490.0,0.15]
[1737598330720,1.06009729,102500.0,102490.0,0.15]
[1737598332034,0.55406329,102500.0,102480.0,0.09758]
[1737598332250,0.00039967,102460.0,102450.0,0.29311983]
[1737598332417,0.50389581,102460.0,102450.0,0.0004497]
[1737598332625,0.55049581,102460.0,102450.0,0.0980577]
[1737598332805,0.55049581,102460.0,102450.0,0.2480577]
[1737598333417,0.55049581,102460.0,102450.0,0.0980577]
[1737598333813,0.65869629,102460.0,102450.0,0.0004497]
[1737598334666,0.464034,102450.0,102430.0,0.08747816]
[1737598334883,0.464034,102450.0,102430.0,0.33561012]
[1737598334884,0.10694729,102440.0,102430.0,0.33561012]
[1737598335121,0.39949729,102440.0,102430.0,0.24813196]
[1737598335300,0.39949729,102440.0,102430.0,0.00050596]
[1737598335463,0.41949729,102440.0,102430.0,0.00050596]
[1737598335663,0.50109729,102440.0,102430.0,0.00050596]
[1737598335844,0.59871529,102440.0,102430.0,0.00050596]
[1737598336649,0.64531529,102440.0,102430.0,0.00050596]
[1737598337054,0.71831529,102440.0,102430.0,0.00050596]
[1737598338042,0.52769729,102440.0,102430.0,0.00050596]
[1737598338215,0.52769729,102440.0,102430.0,0.09813296]
[1737598338778,0.52769729,102440.0,102430.0,0.24813296]
[1737598339854,0.51809729,102440.0,102430.0,0.24813296]
[1737598340058,0.52769729,102440.0,102430.0,0.24813296]
[1737598340501,0.52769729,102440.0,102430.0,1.14993296]
[1737598340734,0.52769729,102440.0,102430.0,0.45433296]
[1737598340903,0.52769729,102440.0,102430.0,0.24813296]
[1737598341534,0.33494819,102440.0,102430.0,2.51103296]
[1737598341742,0.32494852,102440.0,102430.0,2.51103296]
[1737598341947,0.33494819,102440.0,102430.0,2.51103296]
[1737598342144,0.32534819,102440.0,102430.0,2.52072779]
[1737598342369,0.30215,102440.0,102430.0,2.52072779]
[1737598342763,0.30254967,102440.0,102430.0,2.52072779]
[1737598343112,0.30254967,102440.0,102430.0,2.53041232]
[1737598343915,0.30215,102440.0,102430.0,2.53041232]
[1737598344328,0.29255,102440.0,102430.0,2.53041232]
[1737598344955,0.28755,102440.0,102430.0,2.62775961]
[1737598345160,0.25258412,102440.0,102430.0,2.62775961]
[1737598345708,0.25258412,102440.0,102430.0,2.65075961]
[1737598345709,0.16385212,102440.0,102430.0,2.65075961]
[1737598346029,0.16385212,102440.0,102430.0,2.65105907]
[1737598346279,0.14432812,102440.0,102430.0,2.65105907]
[1737598346909,0.12480412,102440.0,102430.0,2.65105907]
[1737598347110,0.02718412,102440.0,102430.0,2.65105907]
[1737598348495,0.00766012,102440.0,102430.0,2.65105907]
[1737598348690,1.2e-07,102440.0,102430.0,2.65105907]
[1737598349050,1.2e-07,102440.0,102430.0,0.36515907]
[1737598349629,1.2e-07,102440.0,102430.0,0.26781178]
[1737598351053,1.2e-07,102440.0,102430.0,0.36515907]
[1737598351450,0.25524238,102460.0,102450.0,0.247608]
[1737598351657,0.55725271,102460.0,102450.0,4.51370283]
[1737598352249,0.55765238,102460.0,102450.0,4.51370283]
[1737598352452,0.54765271,102460.0,102450.0,4.51370283]
[1737598353713,0.54765271,102460.0,102450.0,4.61105012]
[1737598354367,0.48864139,102460.0,102450.0,4.61105012]
[1737598354793,0.48904106,102460.0,102450.0,2.91050283]
[1737598355411,0.48904106,102460.0,102450.0,2.09690283]
[1737598355560,0.48864139,102460.0,102450.0,2.09690283]
[1737598355767,0.48864139,102460.0,102450.0,2.19425012]
[1737598357798,0.29281,102460.0,102450.0,2.19425012]
[1737598358225,0.29281,102460.0,102450.0,2.20384645]
[1737598358426,0.2929525,102460.0,102450.0,2.20384645]
[1737598358583,0.1651525,102460.0,102450.0,2.22684645]
[1737598358984,0.1456325,102460.0,102450.0,2.22684645]
[1737598359194,0.0675525,102460.0,102450.0,2.22684645]
[1737598360038,0.0480325,102460.0,102450.0,2.22684645]
[1737598360290,0.17143819,102480.0,102470.0,0.247589]
[1737598360492,0.17143819,102480.0,102470.0,1.80218383]
[1737598360694,0.46418819,102480.0,102470.0,0.97418383]
[1737598361044,0.46418819,102480.0,102470.0,0.69878383]
[1737598361250,0.46378852,102480.0,102470.0,0.25728383]
[1737598362337,0.46418819,102480.0,102470.0,0.25728383]
[1737598362538,0.234202,102480.0,102470.0,5.24903112]
[1737598362741,0.234202,102480.0,102470.0,5.27203112]
[1737598362742,0.13495699,102480.0,102470.0,5.27203112]
[1737598362956,0.13495699,102480.0,102470.0,5.02153112]
[1737598363158,0.03737699,102480.0,102470.0,4.87873112]
[1737598363779,0.02565699,102480.0,102470.0,4.87873112]
[1737598363954,0.13599819,102500.0,102480.0,0.15]
[1737598364160,0.1361496,102500.0,102490.0,0.09757]
[1737598364363,0.4288596,102500.0,102490.0,2.39216483]
[1737598364686,0.4288596,102500.0,102490.0,1.39366483]
[1737598365265,0.42845993,102500.0,102490.0,0.10726483]
[1737598365466,0.42845993,102500.0,102490.0,0.25726483]
[1737598365672,0.5730087,102500.0,102490.0,0.09757]
[1737598366041,0.5730087,102500.0,102490.0,0.24757]
[1737598367624,0.5730087,102500.0,102490.0,0.25726483]
[1737598368984,0.50857993,102500.0,102490.0,1.04056483]
[1737598369200,0.50857993,102500.0,102490.0,0.83966483]
[1737598369453,0.4988196,102500.0,102490.0,0.83966483]
[1737598369658,0.5091221,102500.0,102490.0,0.83966483]
[1737598370260,0.5091221,102500.0,102490.0,0.40676483]
[1737598370466,0.5091221,102500.0,102490.0,0.41647983]
[1737598370665,0.50872243,102500.0,102490.0,0.26697983]
[1737598371447,0.60606972,102500.0,102490.0,0.26697983]
[1737598374215,0.5736712,102500.0,102490.0,0.26697983]
[1737598374819,0.5736712,102500.0,102490.0,0.09757]
[1737598375023,0.6422712,102500.0,102490.0,0.09757]
[1737598375888,0.0996,102490.0,102480.0,0.292716]
[1737598376090,0.46965729,102490.0,102480.0,0.292716]
[1737598378462,0.46965729,102490.0,102480.0,0.30248958]
[1737598378668,1.01165729,102490.0,102480.0,0.30248958]
[1737598379718,1.02181729,102490.0,102480.0,0.31218441]
[1737598379871,1.02181729,102490.0,102480.0,0.30248958]
[1737598381274,1.02181729,102490.0,102480.0,0.45248958]
[1737598381484,0.87766819,102490.0,102480.0,3.43738883]
[1737598381692,0.84487,102490.0,102480.0,3.43738883]
[1737598381898,0.84526967,102490.0,102480.0,3.43738883]
[1737598382237,0.87766819,102490.0,102480.0,1.33258883]
[1737598382436,0.825356,102490.0,102480.0,1.33258883]
[1737598382644,0.815196,102490.0,102480.0,1.33258883]
[1737598383454,0.717626,102490.0,102480.0,1.33258883]
[1737598384709,0.717626,102490.0,102480.0,0.45278883]
[1737598384899,0.717626,102490.0,102480.0,2.47728883]
[1737598385112,0.717626,102490.0,102480.0,1.98348883]
[1737598385258,0.659084,102490.0,102480.0,1.98348883]
[1737598385468,0.620056,102490.0,102480.0,1.98348883]
[1737598385669,0.620056,102490.0,102480.0,1.92488883]
[1737598386246,0.581028,102490.0,102480.0,1.90498883]
[1737598386454,0.00029391,102500.0,102490.0,0.27057]
[1737598386637,0.32309967,102510.0,102490.0,5.33004212]
[1737598386848,0.32309967,102510.0,102500.0,5.29756]
[1737598387051,0.55685,102510.0,102500.0,5.29756]
[1737598387227,0.53773967,102510.0,102500.0,5.29756]
[1737598387985,0.53773967,102510.0,102500.0,2.46636]
[1737598388210,0.53734,102510.0,102500.0,0.76626]
[1737598388584,0.53773967,102510.0,102500.0,0.76626]
[1737598389920,0.53773967,102510.0,102500.0,0.42626]
[1737598390051,0.53773967,102510.0,102500.0,0.09756]
[1737598390253,0.53773967,102510.0,102500.0,2.39856]
[1737598390512,0.53773967,102510.0,102500.0,0.60836]
[1737598390714,0.53773967,102510.0,102500.0,0.58656]
[1737598391121,0.53773967,102510.0,102500.0,0.45796]
[1737598391318,0.53773967,102510.0,102500.0,0.20296]
[1737598391671,0.12706937,102500.0,102490.0,0.30238883]
[1737598391870,0.41974937,102500.0,102490.0,0.30238883]
[1737598392079,0.41974937,102500.0,102490.0,0.45238883]
[1737598392287,0.41974937,102500.0,102490.0,3.39838883]
[1737598392713,0.41974937,102500.0,102490.0,3.05288883]
[1737598393299,0.34184387,102500.0,102490.0,3.05288883]
[1737598393650,0.32233187,102500.0,102490.0,3.05288883]
[1737598395526,0.32233187,102500.0,102490.0,3.06289439]
[1737598396174,0.32273154,102500.0,102490.0,3.06289439]
[1737598396355,0.32273154,102500.0,102490.0,2.61309439]
[1737598396493,0.32273154,102500.0,102490.0,1.90999439]
[1737598396692,0.32273154,102500.0,102490.0,1.86319439]
[1737598396894,0.32273154,102500.0,102490.0,1.81159439]
[1737598397094,0.31667261,102500.0,102490.0,1.81159439]
[1737598397296,0.23567485,102500.0,102490.0,1.90894168]
[1737598397502,0.13811485,102500.0,102490.0,1.90894168]
[1737598397745,0.08414485,102500.0,102490.0,1.93194168]
[1737598398168,8.5e-07,102500.0,102490.0,1.93194168]
[1737598398369,0.205324,102510.0,102500.0,4.94972]
[1737598398544,0.3291998,102510.0,102500.0,5.07006729]
[1737598399144,0.2493468,102510.0,102500.0,5.07006729]
[1737598399345,0.1908168,102510.0,102500.0,5.07006729]
[1737598399561,0.08261894,102510.0,102500.0,5.07006729]
[1737598399792,0.08261894,102510.0,102500.0,3.76110729]
[1737598400001,0.08261894,102510.0,102500.0,2.83920729]
[1737598400159,0.02408894,102510.0,102500.0,2.83920729]
[1737598400351,9.4e-07,102510.0,102500.0,2.83920729]
[1737598400554,9.4e-07,102510.0,102500.0,0.36790729]
[1737598401409,0.03179913,102530.0,102520.0,0.097541]
[1737598401555,0.03189766,102530.0,102520.0,2.45463583]
[1737598401755,0.32450766,102530.0,102520.0,2.03813583]
[1737598401962,0.32450766,102530.0,102520.0,1.86941383]
[1737598402277,0.32450766,102530.0,102520.0,1.84761383]
[1737598402450,0.32450766,102530.0,102520.0,0.91381383]
[1737598402662,0.47747582,102530.0,102520.0,0.30231383]
[1737598402861,0.47747582,102530.0,102520.0,0.292619]
[1737598403106,0.47747582,102530.0,102520.0,0.442619]
[1737598403855,0.54367582,102530.0,102520.0,0.292619]
[1737598404770,0.52367582,102530.0,102520.0,0.292619]
[1737598406688,0.52367582,102530.0,102520.0,0.442619]
[1737598406954,0.55547495,102530.0,102520.0,0.927819]
[1737598407303,0.54475495,102530.0,102520.0,0.587819]
[1737598407650,0.52367582,102530.0,102520.0,0.20016]
[1737598407951,0.52367582,102530.0,102520.0,0.395238]
[1737598408299,1.35814182,102530.0,102520.0,0.395238]
[1737598408508,1.36886182,102530.0,102520.0,0.395238]
[1737598408928,1.38994095,102530.0,102520.0,0.395238]
[1737598409128,1.36886182,102530.0,102520.0,3.163738]
[1737598410553,1.35814182,102530.0,102520.0,0.696638]
[1737598410753,1.36886182,102530.0,102520.0,0.395238]
[1737598410954,1.36886182,102530.0,102520.0,1.129438]
[1737598411198,1.36886182,102530.0,102520.0,0.520438]
[1737598411375,1.36886182,102530.0,102520.0,0.495238]
[1737598412712,1.35814182,102530.0,102520.0,0.495238]
[1737598412864,0.29270853,102530.0,102520.0,0.495238]
[1737598416331,0.29285103,102530.0,102520.0,0.495238]
[1737598416672,0.32465016,102530.0,102520.0,0.495238]
[1737598416836,0.29285103,102530.0,102520.0,0.495238]
[1737598417196,0.32465016,102530.0,102520.0,0.495238]
[1737598417554,0.32465016,102530.0,102520.0,0.395238]
[1737598418123,0.33632531,102550.0,102540.0,0.097522]
[1737598418340,0.33632531,102550.0,102540.0,0.59301683]
[1737598418341,0.35726224,102550.0,102540.0,0.59301683]
[1737598418549,0.53140953,102550.0,102540.0,0.097522]
[1737598418714,0.5652104,102550.0,102540.0,0.097522]
[1737598418921,0.5452104,102550.0,102540.0,0.097522]
[1737598419076,0.8377604,102550.0,102540.0,0.097522]
[1737598419280,0.86955953,102550.0,102540.0,0.097522]
[1737598419481,0.8377604,102550.0,102540.0,0.097522]
[1737598420159,0.8687604,102550.0,102540.0,0.097522]
[1737598420370,0.8577604,102550.0,102540.0,0.097522]
[1737598420564,0.8687604,102550.0,102540.0,0.097522]
[1737598421617,0.0768,102530.0,102520.0,0.195066]
[1737598421874,0.46669729,102530.0,102520.0,0.2926]
[1737598422142,0.46669729,102530.0,102520.0,0.4426]
[1737598422342,0.51229729,102530.0,102520.0,0.4426]
[1737598425196,0.53229729,102530.0,102520.0,0.15]
[1737598425422,0.03179913,102500.0,102490.0,0.29300625]
[1737598425635,0.42169642,102500.0,102490.0,2.37290478]
[1737598426051,0.42169642,102500.0,102490.0,2.27430478]
[1737598426409,0.42169642,102500.0,102490.0,2.12430478]
[1737598427262,0.29255,102500.0,102490.0,2.27430478]
[1737598427437,0.29255,102500.0,102490.0,2.28399961]
[1737598428052,0.29255,102500.0,102490.0,2.29370893]
[1737598429127,0.29255,102500.0,102490.0,0.46250893]
[1737598429303,0.29255,102500.0,102490.0,5.31466893]
[1737598430483,0.29255,102500.0,102490.0,2.71730893]
[1737598435124,0.29255,102500.0,102490.0,1.20640893]
[1737598436011,0.50449642,102500.0,102490.0,0.4528141]
[1737598436222,0.50449642,102500.0,102490.0,0.5758141]
[1737598436414,0.47269729,102500.0,102490.0,0.4941141]
[1737598436755,0.40714913,102500.0,102490.0,0.4941141]
[1737598436980,0.40714913,102500.0,102490.0,0.6441141]
[1737598437589,0.37535,102500.0,102490.0,0.6441141]
[1737598438881,0.47269729,102500.0,102490.0,0.4528141]
[1737598439887,0.47269729,102500.0,102490.0,0.5723141]
[1737598440125,0.47269729,102500.0,102490.0,0.4528141]
[1737598440261,0.47269729,102500.0,102490.0,0.5711141]
[1737598441009,0.50449642,102500.0,102490.0,0.4528141]
[1737598441232,0.99518329,102500.0,102490.0,0.4528141]
[1737598441918,0.99518329,102500.0,102490.0,0.7587141]
[1737598442263,0.99518329,102500.0,102490.0,0.4528141]
[1737598446353,0.99518329,102500.0,102490.0,0.46250893]
[1737598447013,0.47269729,102500.0,102490.0,0.46250893]
[1737598448583,0.47269729,102500.0,102490.0,0.4528141]
[1737598448795,0.48277729,102500.0,102490.0,0.4528141]
[1737598450453,0.55007729,102500.0,102490.0,0.0101071]
[1737598450659,0.62763729,102500.0,102490.0,0.00039778]
[1737598450853,0.67763729,102500.0,102490.0,0.00039778]
[1737598452891,0.58007729,102500.0,102490.0,0.00039778]
[1737598453100,0.67763729,102500.0,102490.0,0.00039778]
[1737598453301,0.70063729,102500.0,102490.0,0.00039778]
[1737598453520,1.11397,102490.0,102480.0,0.00029925]
[1737598453715,1.11397,102490.0,102480.0,0.00011142]
[1737598453716,0.78556729,102490.0,102480.0,0.00011142]
[1737598454111,0.1451,102450.0,102440.0,0.292835]
[1737598454427,0.54507729,102450.0,102430.0,0.29315746]